[Event "Late-Titled-Tuesday-Blitz-September-26-2023"]
[Site "Chess.com"]
[Date "2023.09.26"]
[Round "4"]
[White "Sulthankan"]
[Black "jk13"]
[Result "0-1"]
[WhiteElo "2337"]
[BlackElo "2620"]
[TimeControl "180+1"]
[EndTime "14:38:03 PDT"]
[Termination "jk13 won by resignation"]

1. d4 {[%clk 0:03:00.9]} 1... Nf6 {[%clk 0:02:59.5]} 2. c4 {[%clk 0:03:00.7]}
2... e6 {[%clk 0:02:59.8]} 3. Nf3 {[%clk 0:03:01.3]} 3... Bb4+ {[%clk
0:03:00.5]} 4. Nbd2 {[%clk 0:03:00]} 4... O-O {[%clk 0:03:00.4]} 5. a3 {[%clk
0:03:00.1]} 5... Be7 {[%clk 0:03:01]} 6. e4 {[%clk 0:03:00.8]} 6... d5 {[%clk
0:03:01.9]} 7. e5 {[%clk 0:03:01.1]} 7... Nfd7 {[%clk 0:03:02.2]} 8. Bd3 {[%clk
0:03:01.6]} 8... c5 {[%clk 0:03:02.6]} 9. h4 {[%clk 0:03:00.4]} 9... g6 {[%clk
0:03:02.8]} 10. h5 {[%clk 0:02:51.4]} 10... Nc6 {[%clk 0:03:02.3]} 11. cxd5
{[%clk 0:02:40.9]} 11... exd5 {[%clk 0:03:03.2]} 12. Qe2 {[%clk 0:02:41.2]}
12... Qe8 {[%clk 0:02:35.2]} 13. Nf1 {[%clk 0:02:23.2]} 13... cxd4 {[%clk
0:02:25.1]} 14. Ng3 {[%clk 0:02:14.8]} 14... Nc5 {[%clk 0:02:08.4]} 15. Bh6
{[%clk 0:02:00.5]} 15... Bg4 {[%clk 0:02:08.5]} 16. hxg6 {[%clk 0:01:49.1]}
16... fxg6 {[%clk 0:02:06.9]} 17. Bxf8 {[%clk 0:01:47.2]} 17... Bxf8 {[%clk
0:02:07]} 18. O-O {[%clk 0:01:16]} 18... Bxf3 {[%clk 0:01:43.9]} 19. Qxf3 {[%clk
0:01:15.1]} 19... Nxd3 {[%clk 0:01:29]} 20. Qxd3 {[%clk 0:01:12.8]} 20... Qxe5
{[%clk 0:01:28.7]} 21. Rae1 {[%clk 0:01:06.8]} 21... Qd6 {[%clk 0:01:28.2]} 22.
Ne2 {[%clk 0:00:59.5]} 22... Bg7 {[%clk 0:01:27.7]} 23. Qb5 {[%clk 0:00:55.5]}
23... Rb8 {[%clk 0:01:18.8]} 24. Nc1 {[%clk 0:00:55.9]} 24... a6 {[%clk
0:01:13.6]} 25. Qb3 {[%clk 0:00:50.1]} 25... Ne5 {[%clk 0:01:07.7]} 26. Nd3
{[%clk 0:00:44.1]} 26... Nc4 {[%clk 0:01:00.2]} 27. Re2 {[%clk 0:00:42.2]} 27...
b5 {[%clk 0:00:59.4]} 28. Qd1 {[%clk 0:00:39.9]} 28... Rf8 {[%clk 0:00:56.8]}
29. b3 {[%clk 0:00:30.9]} 29... Ne5 {[%clk 0:00:47.1]} 30. Nxe5 {[%clk
0:00:21.5]} 30... Bxe5 {[%clk 0:00:48]} 31. g3 {[%clk 0:00:21.8]} 31... Bg7
{[%clk 0:00:47.6]} 32. Qd3 {[%clk 0:00:20.6]} 32... Qxa3 {[%clk 0:00:45.1]} 33.
f4 {[%clk 0:00:19.9]} 33... Qd6 {[%clk 0:00:37.5]} 34. Rfe1 {[%clk 0:00:18.9]}
34... Qc7 {[%clk 0:00:33.9]} 35. Qf3 {[%clk 0:00:17.4]} 35... Qc5 {[%clk
0:00:32.4]} 36. Re7 {[%clk 0:00:15.3]} 36... d3+ {[%clk 0:00:29.7]} 37. Kg2
{[%clk 0:00:15.2]} 37... d2 {[%clk 0:00:29.5]} 38. R1e6 {[%clk 0:00:14]} 38...
Qc2 {[%clk 0:00:25.9]} 39. Re2 {[%clk 0:00:10.8]} 39... d1=Q {[%clk 0:00:24.3]}
40. Rxc2 {[%clk 0:00:10.6]} 40... Qxc2+ {[%clk 0:00:25.2]} 41. Kh3 {[%clk
0:00:10.7]} 41... Qf5+ {[%clk 0:00:25.1]} 42. g4 {[%clk 0:00:10.6]} 42... Qxf4
{[%clk 0:00:24.2]} 43. Qxd5+ {[%clk 0:00:11.2]} 43... Kh8 {[%clk 0:00:24.4]} 0-1

[Event "Late-Titled-Tuesday-Blitz-September-26-2023"]
[Site "Chess.com"]
[Date "2023.09.26"]
[Round "4"]
[White "Kazmin_Semyon"]
[Black "Zampronha1971"]
[Result "0-1"]
[WhiteElo "2467"]
[BlackElo "2284"]
[TimeControl "180+1"]
[EndTime "14:38:05 PDT"]
[Termination "Zampronha1971 won on time"]

1. e4 {[%clk 0:02:54.7]} 1... c5 {[%clk 0:02:59.9]} 2. Nf3 {[%clk 0:02:54.9]}
2... e6 {[%clk 0:03:00.4]} 3. d4 {[%clk 0:02:55.6]} 3... cxd4 {[%clk 0:03:01.1]}
4. Nxd4 {[%clk 0:02:56.5]} 4... Nc6 {[%clk 0:03:01.6]} 5. Nc3 {[%clk 0:02:56.2]}
5... Qc7 {[%clk 0:03:01.9]} 6. Nb3 {[%clk 0:02:46.2]} 6... Nf6 {[%clk
0:03:00.5]} 7. g4 {[%clk 0:02:46]} 7... d6 {[%clk 0:02:59.3]} 8. g5 {[%clk
0:02:45.7]} 8... Nd7 {[%clk 0:02:59.2]} 9. Bg2 {[%clk 0:02:46.3]} 9... a6 {[%clk
0:02:58.9]} 10. O-O {[%clk 0:02:46.6]} 10... h6 {[%clk 0:02:49.3]} 11. Re1
{[%clk 0:02:22.5]} 11... hxg5 {[%clk 0:02:48.3]} 12. Bxg5 {[%clk 0:02:23.4]}
12... Be7 {[%clk 0:02:44.8]} 13. Bf4 {[%clk 0:02:21.2]} 13... Nce5 {[%clk
0:02:39.5]} 14. Bg3 {[%clk 0:02:20.4]} 14... b5 {[%clk 0:02:36.2]} 15. f4 {[%clk
0:02:17.1]} 15... Nc4 {[%clk 0:02:36.1]} 16. Qd4 {[%clk 0:01:55]} 16... Kf8
{[%clk 0:02:05]} 17. e5 {[%clk 0:01:41.1]} 17... Bb7 {[%clk 0:01:55.2]} 18. Ne4
{[%clk 0:01:21.7]} 18... Bxe4 {[%clk 0:01:39.7]} 19. Qxe4 {[%clk 0:01:09.5]}
19... d5 {[%clk 0:01:38.1]} 20. Qf3 {[%clk 0:00:57.5]} 20... g6 {[%clk
0:01:36.3]} 21. Rab1 {[%clk 0:00:48.8]} 21... Nc5 {[%clk 0:01:36.7]} 22. Nxc5
{[%clk 0:00:35.3]} 22... Bxc5+ {[%clk 0:01:35.1]} 23. Kh1 {[%clk 0:00:34.8]}
23... Kg7 {[%clk 0:01:30.3]} 24. Qd3 {[%clk 0:00:26.3]} 24... Rac8 {[%clk
0:01:26.4]} 25. b3 {[%clk 0:00:25.4]} 25... Na3 {[%clk 0:01:22.2]} 26. Rbc1
{[%clk 0:00:22.8]} 26... Be7 {[%clk 0:01:17.8]} 27. Re2 {[%clk 0:00:16.7]} 27...
Qc3 {[%clk 0:01:15]} 28. Qd1 {[%clk 0:00:13]} 28... Qxg3 {[%clk 0:01:14]} 29. h3
{[%clk 0:00:10.2]} 29... Rc3 {[%clk 0:01:07.9]} 30. Qf1 {[%clk 0:00:07.2]} 30...
Bc5 {[%clk 0:01:01]} 31. f5 {[%clk 0:00:05.7]} 31... gxf5 {[%clk 0:00:50.8]} 32.
Rd1 {[%clk 0:00:06.3]} 32... b4 {[%clk 0:00:45.7]} 33. Rdd2 {[%clk 0:00:04.5]}
33... Kf8 {[%clk 0:00:41]} 34. Rd1 {[%clk 0:00:02.9]} 34... Nb5 {[%clk
0:00:41.2]} 35. Red2 {[%clk 0:00:02.4]} 35... Nc7 {[%clk 0:00:39.2]} 36. Rd3
{[%clk 0:00:02.7]} 36... Rxd3 {[%clk 0:00:37.9]} 37. Rxd3 {[%clk 0:00:03.6]}
37... Qxe5 {[%clk 0:00:37.1]} 38. Qd1 {[%clk 0:00:02.5]} 38... Rg8 {[%clk
0:00:35.3]} 39. Qf1 {[%clk 0:00:01.5]} 39... Nb5 {[%clk 0:00:33.9]} 0-1

[Event "Late-Titled-Tuesday-Blitz-September-26-2023"]
[Site "Chess.com"]
[Date "2023.09.26"]
[Round "4"]
[White "orestn"]
[Black "aNaartjieZA"]
[Result "0-1"]
[WhiteElo "2427"]
[BlackElo "2599"]
[TimeControl "180+1"]
[EndTime "14:38:06 PDT"]
[Termination "aNaartjieZA won by resignation"]

1. e4 {[%clk 0:02:55.3]} 1... e6 {[%clk 0:03:00]} 2. d4 {[%clk 0:02:54.5]} 2...
d5 {[%clk 0:03:00.2]} 3. Nc3 {[%clk 0:02:54.7]} 3... Bb4 {[%clk 0:02:59.5]} 4.
e5 {[%clk 0:02:54.6]} 4... c5 {[%clk 0:02:59.7]} 5. a3 {[%clk 0:02:55.1]} 5...
Bxc3+ {[%clk 0:02:59.6]} 6. bxc3 {[%clk 0:02:56]} 6... Ne7 {[%clk 0:03:00]} 7.
h4 {[%clk 0:02:55.5]} 7... Qc7 {[%clk 0:02:59.2]} 8. Nf3 {[%clk 0:02:54.6]} 8...
b6 {[%clk 0:02:53.1]} 9. Bb5+ {[%clk 0:02:53.2]} 9... Bd7 {[%clk 0:02:52.9]} 10.
Bd3 {[%clk 0:02:53.3]} 10... c4 {[%clk 0:02:48.5]} 11. Be2 {[%clk 0:02:52.2]}
11... Ba4 {[%clk 0:02:48.3]} 12. h5 {[%clk 0:02:51]} 12... h6 {[%clk 0:02:48.3]}
13. Nh4 {[%clk 0:02:49.4]} 13... Nbc6 {[%clk 0:02:47.8]} 14. Be3 {[%clk
0:02:45.1]} 14... Kd7 {[%clk 0:02:45.1]} 15. Kd2 {[%clk 0:02:41.5]} 15... Qd8
{[%clk 0:02:45.1]} 16. g4 {[%clk 0:02:38]} 16... Qg8 {[%clk 0:02:45.3]} 17. f4
{[%clk 0:02:36.1]} 17... Qh7 {[%clk 0:02:44.9]} 18. Rf1 {[%clk 0:02:33.5]} 18...
f6 {[%clk 0:02:31.3]} 19. Ra2 {[%clk 0:02:30.9]} 19... fxe5 {[%clk 0:02:27.4]}
20. dxe5 {[%clk 0:02:21.4]} 20... Rhf8 {[%clk 0:02:21.2]} 21. Kc1 {[%clk
0:02:19.1]} 21... Kc7 {[%clk 0:02:17.4]} 22. Qd2 {[%clk 0:02:12.3]} 22... Rad8
{[%clk 0:02:15.6]} 23. Bd4 {[%clk 0:02:08.1]} 23... Nxd4 {[%clk 0:02:09.8]} 24.
cxd4 {[%clk 0:02:04.5]} 24... Kb7 {[%clk 0:02:08.6]} 25. Qb4 {[%clk 0:01:59.7]}
25... Nc6 {[%clk 0:02:01.7]} 26. Qxa4 {[%clk 0:01:54.5]} 26... Nxd4 {[%clk
0:02:01.6]} 27. Bd1 {[%clk 0:01:51.9]} 27... Qe4 {[%clk 0:02:00.6]} 28. Ng6
{[%clk 0:01:37.9]} 28... Rf7 {[%clk 0:01:55.7]} 29. Qb4 {[%clk 0:01:37.1]} 29...
c3 {[%clk 0:01:47.1]} 30. Qxc3 {[%clk 0:01:35]} 30... Rc7 {[%clk 0:01:42.8]} 31.
Qg3 {[%clk 0:01:27.4]} 31... Rdc8 {[%clk 0:01:13.1]} 32. Qf2 {[%clk 0:01:23.3]}
32... Nb5 {[%clk 0:00:49.2]} 33. Re1 {[%clk 0:01:15.3]} 33... Qc4 {[%clk
0:00:49.1]} 34. Rb2 {[%clk 0:01:05.6]} 34... Nxa3 {[%clk 0:00:46.5]} 35. f5
{[%clk 0:01:02.2]} 35... exf5 {[%clk 0:00:34.1]} 36. gxf5 {[%clk 0:01:00.5]}
36... Qa4 {[%clk 0:00:33]} 37. Qg2 {[%clk 0:00:50.8]} 37... Nc4 {[%clk
0:00:28.7]} 38. Qxd5+ {[%clk 0:00:50.2]} 38... Kb8 {[%clk 0:00:29]} 39. Kb1
{[%clk 0:00:43.6]} 39... Nxb2 {[%clk 0:00:18.5]} 40. Kxb2 {[%clk 0:00:44.5]}
40... Qb4+ {[%clk 0:00:18.6]} 41. Qb3 {[%clk 0:00:41.3]} 41... Qxe1 {[%clk
0:00:18.5]} 42. e6 {[%clk 0:00:39.6]} 42... Qxd1 {[%clk 0:00:17.8]} 43. c4
{[%clk 0:00:36.4]} 43... Qd2+ {[%clk 0:00:15.9]} 44. Qc2 {[%clk 0:00:35.4]}
44... Qd4+ {[%clk 0:00:16]} 45. Qc3 {[%clk 0:00:35.4]} 45... Qf2+ {[%clk
0:00:16.2]} 46. Qc2 {[%clk 0:00:35.2]} 46... Qc5 {[%clk 0:00:16.4]} 47. e7
{[%clk 0:00:34.7]} 47... Rxe7 {[%clk 0:00:16.1]} 48. Nxe7 {[%clk 0:00:34]} 48...
Qxe7 {[%clk 0:00:17]} 0-1

[Event "Late-Titled-Tuesday-Blitz-September-26-2023"]
[Site "Chess.com"]
[Date "2023.09.26"]
[Round "4"]
[White "Gogolev_Artemy"]
[Black "lucasmito"]
[Result "0-1"]
[WhiteElo "2396"]
[BlackElo "2732"]
[TimeControl "180+1"]
[EndTime "14:38:06 PDT"]
[Termination "lucasmito won on time"]

1. c4 {[%clk 0:02:57.4]} 1... e5 {[%clk 0:02:55.9]} 2. Nc3 {[%clk 0:02:51.3]}
2... Nf6 {[%clk 0:02:55.8]} 3. Nf3 {[%clk 0:02:51.8]} 3... Nc6 {[%clk
0:02:54.9]} 4. g3 {[%clk 0:02:51.7]} 4... d5 {[%clk 0:02:54.8]} 5. cxd5 {[%clk
0:02:51.6]} 5... Nxd5 {[%clk 0:02:55.7]} 6. Bg2 {[%clk 0:02:51.3]} 6... Nf6
{[%clk 0:02:54.9]} 7. O-O {[%clk 0:02:51]} 7... h6 {[%clk 0:02:54.4]} 8. b3
{[%clk 0:02:44.6]} 8... Bc5 {[%clk 0:02:52.8]} 9. Bb2 {[%clk 0:02:43.6]} 9...
O-O {[%clk 0:02:53.1]} 10. Rc1 {[%clk 0:02:39.7]} 10... Re8 {[%clk 0:02:52.7]}
11. d3 {[%clk 0:02:32.4]} 11... Bg4 {[%clk 0:02:43.8]} 12. h3 {[%clk 0:02:24.6]}
12... Bh5 {[%clk 0:02:41.5]} 13. g4 {[%clk 0:02:22.4]} 13... Bg6 {[%clk
0:02:40.2]} 14. Nh4 {[%clk 0:02:19.6]} 14... Bh7 {[%clk 0:02:34.5]} 15. Nf5
{[%clk 0:02:17.7]} 15... Bxf5 {[%clk 0:02:24.2]} 16. gxf5 {[%clk 0:02:18.6]}
16... Nd4 {[%clk 0:02:24.3]} 17. Ne4 {[%clk 0:02:09.1]} 17... Bb6 {[%clk
0:02:11.7]} 18. Nxf6+ {[%clk 0:01:58.4]} 18... Qxf6 {[%clk 0:02:12.6]} 19. e3
{[%clk 0:01:44.9]} 19... Nxf5 {[%clk 0:02:09.8]} 20. Bxb7 {[%clk 0:01:43]} 20...
Rad8 {[%clk 0:01:45.7]} 21. Qg4 {[%clk 0:01:38.6]} 21... Rxd3 {[%clk 0:01:12.6]}
22. Be4 {[%clk 0:01:34.1]} 22... Rd2 {[%clk 0:01:13.1]} 23. Bc3 {[%clk
0:01:33.9]} 23... Rxf2 {[%clk 0:01:13.2]} 24. Rxf2 {[%clk 0:01:28.8]} 24... Nxe3
{[%clk 0:01:13.6]} 25. Qf3 {[%clk 0:01:03.1]} 25... Qxf3 {[%clk 0:00:58.8]} 26.
Rxf3 {[%clk 0:00:38.8]} 26... f5 {[%clk 0:00:58.8]} 27. Bb1 {[%clk 0:00:13.7]}
27... e4 {[%clk 0:00:56.1]} 28. Rf2 {[%clk 0:00:11.1]} 28... Nd5 {[%clk
0:00:50.6]} 29. Kg2 {[%clk 0:00:08.9]} 29... g5 {[%clk 0:00:20.6]} 30. Re2
{[%clk 0:00:03.5]} 30... Nf4+ {[%clk 0:00:20.7]} 31. Kf1 {[%clk 0:00:03.9]}
31... Nxe2 {[%clk 0:00:21.6]} 32. Kxe2 {[%clk 0:00:04.8]} 32... f4 {[%clk
0:00:20.5]} 33. Bf6 {[%clk 0:00:04]} 33... Kf7 {[%clk 0:00:18.7]} 34. Bb2 {[%clk
0:00:03.4]} 34... f3+ {[%clk 0:00:19]} 35. Kf1 {[%clk 0:00:01]} 35... e3 {[%clk
0:00:19.6]} 0-1

[Event "Late-Titled-Tuesday-Blitz-September-26-2023"]
[Site "Chess.com"]
[Date "2023.09.26"]
[Round "4"]
[White "schack_vit"]
[Black "lefonghua"]
[Result "1/2-1/2"]
[WhiteElo "2465"]
[BlackElo "2632"]
[TimeControl "180+1"]
[EndTime "14:38:10 PDT"]
[Termination "Game drawn by repetition"]

1. c4 {[%clk 0:02:57.9]} 1... Nf6 {[%clk 0:02:56.1]} 2. g3 {[%clk 0:02:57.5]}
2... g6 {[%clk 0:02:55.4]} 3. Bg2 {[%clk 0:02:57.6]} 3... Bg7 {[%clk 0:02:55.8]}
4. Nc3 {[%clk 0:02:58]} 4... O-O {[%clk 0:02:56.1]} 5. Nf3 {[%clk 0:02:58.6]}
5... d6 {[%clk 0:02:55]} 6. O-O {[%clk 0:02:58.6]} 6... c5 {[%clk 0:02:55.4]} 7.
a3 {[%clk 0:02:58]} 7... Nc6 {[%clk 0:02:55]} 8. Rb1 {[%clk 0:02:58.1]} 8... b6
{[%clk 0:02:55.3]} 9. Ne5 {[%clk 0:02:34.4]} 9... Nxe5 {[%clk 0:02:49.9]} 10.
Bxa8 {[%clk 0:02:34.5]} 10... Bf5 {[%clk 0:02:45.4]} 11. Bg2 {[%clk 0:01:59.5]}
11... Bxb1 {[%clk 0:02:41.9]} 12. Nxb1 {[%clk 0:02:00.4]} 12... Nxc4 {[%clk
0:02:39.5]} 13. b4 {[%clk 0:01:52.7]} 13... d5 {[%clk 0:02:27.4]} 14. bxc5
{[%clk 0:01:41.7]} 14... bxc5 {[%clk 0:02:27.5]} 15. d4 {[%clk 0:01:42.1]} 15...
cxd4 {[%clk 0:02:25.6]} 16. Qxd4 {[%clk 0:01:41.2]} 16... Qb6 {[%clk 0:02:22.4]}
17. Qxb6 {[%clk 0:01:23.9]} 17... axb6 {[%clk 0:02:23.3]} 18. Nc3 {[%clk
0:01:21]} 18... e6 {[%clk 0:02:21.2]} 19. e4 {[%clk 0:01:02.2]} 19... d4 {[%clk
0:02:15]} 20. Nb5 {[%clk 0:01:02.1]} 20... e5 {[%clk 0:02:12.8]} 21. f4 {[%clk
0:00:56.6]} 21... Ng4 {[%clk 0:02:10.7]} 22. fxe5 {[%clk 0:00:53.2]} 22... Bxe5
{[%clk 0:02:06.1]} 23. Bf4 {[%clk 0:00:52.9]} 23... Bxf4 {[%clk 0:02:02.7]} 24.
gxf4 {[%clk 0:00:46.9]} 24... Nge3 {[%clk 0:02:01.6]} 25. Rc1 {[%clk 0:00:40.6]}
25... d3 {[%clk 0:01:54.5]} 26. Bf3 {[%clk 0:00:40.7]} 26... d2 {[%clk
0:01:51.7]} 27. Rb1 {[%clk 0:00:40.7]} 27... Rd8 {[%clk 0:01:46.2]} 28. Nc3
{[%clk 0:00:39.1]} 28... Nxa3 {[%clk 0:01:43.4]} 29. Ra1 {[%clk 0:00:34.3]}
29... Nac2 {[%clk 0:01:42.6]} 30. Rb1 {[%clk 0:00:33.9]} 30... Nd4 {[%clk
0:01:36.6]} 31. Kf2 {[%clk 0:00:16.5]} 31... Nxf3 {[%clk 0:01:22.8]} 32. Kxe3
{[%clk 0:00:16.9]} 32... Nxh2 {[%clk 0:01:21.4]} 33. Nd5 {[%clk 0:00:17.4]}
33... Nf1+ {[%clk 0:01:17.5]} 34. Rxf1 {[%clk 0:00:16.7]} 34... f5 {[%clk
0:01:14.8]} 35. Rd1 {[%clk 0:00:15.5]} 35... fxe4 {[%clk 0:01:14.8]} 36. Rxd2
{[%clk 0:00:15.7]} 36... Kf7 {[%clk 0:01:14.2]} 37. Kxe4 {[%clk 0:00:16]} 37...
Re8+ {[%clk 0:01:14.4]} 38. Kf3 {[%clk 0:00:15.2]} 38... Rd8 {[%clk 0:01:14]}
39. Rd3 {[%clk 0:00:13.5]} 39... h6 {[%clk 0:01:13.1]} 40. Nb4 {[%clk
0:00:13.4]} 40... Rxd3+ {[%clk 0:00:55.8]} 41. Nxd3 {[%clk 0:00:14.3]} 41... Kf6
{[%clk 0:00:51.4]} 42. Ke4 {[%clk 0:00:13.8]} 42... b5 {[%clk 0:00:52]} 43. Nb4
{[%clk 0:00:14]} 43... h5 {[%clk 0:00:49.8]} 44. Nd5+ {[%clk 0:00:13.3]} 44...
Ke6 {[%clk 0:00:50.2]} 45. Nc7+ {[%clk 0:00:12.4]} 45... Kf6 {[%clk 0:00:50.6]}
46. Nxb5 {[%clk 0:00:12.9]} 46... g5 {[%clk 0:00:49.9]} 47. f5 {[%clk
0:00:12.8]} 47... h4 {[%clk 0:00:50.6]} 48. Nc3 {[%clk 0:00:09.3]} 48... h3
{[%clk 0:00:50.9]} 49. Nd5+ {[%clk 0:00:10.1]} 49... Kf7 {[%clk 0:00:50.1]} 50.
Kf3 {[%clk 0:00:10.7]} 50... g4+ {[%clk 0:00:49.6]} 51. Kg3 {[%clk 0:00:10.9]}
51... Kg7 {[%clk 0:00:48.3]} 52. f6+ {[%clk 0:00:11]} 52... Kf7 {[%clk
0:00:48.1]} 53. Kh2 {[%clk 0:00:11.2]} 53... Ke6 {[%clk 0:00:46.5]} 54. Kg3
{[%clk 0:00:11.5]} 54... Kf7 {[%clk 0:00:46.8]} 55. Kh2 {[%clk 0:00:05.5]} 55...
Ke6 {[%clk 0:00:47.1]} 56. Kg3 {[%clk 0:00:04.9]} 56... Kf7 {[%clk 0:00:47.6]}
1/2-1/2

[Event "Late-Titled-Tuesday-Blitz-September-26-2023"]
[Site "Chess.com"]
[Date "2023.09.26"]
[Round "4"]
[White "WPWPWP-2015"]
[Black "CURRUTACO59"]
[Result "1-0"]
[WhiteElo "2491"]
[BlackElo "2254"]
[TimeControl "180+1"]
[EndTime "14:38:10 PDT"]
[Termination "WPWPWP-2015 won on time"]

1. e4 {[%clk 0:03:00.9]} 1... e5 {[%clk 0:02:57.3]} 2. Nf3 {[%clk 0:03:01]} 2...
Nc6 {[%clk 0:02:56.4]} 3. Bb5 {[%clk 0:03:00.4]} 3... Bc5 {[%clk 0:02:56.3]} 4.
O-O {[%clk 0:02:59.6]} 4... Nd4 {[%clk 0:02:55.1]} 5. Nxd4 {[%clk 0:02:59]} 5...
Bxd4 {[%clk 0:02:56]} 6. c3 {[%clk 0:02:59.2]} 6... Bb6 {[%clk 0:02:55.7]} 7. d4
{[%clk 0:02:58.6]} 7... c6 {[%clk 0:02:56]} 8. Bc4 {[%clk 0:02:57.3]} 8... d6
{[%clk 0:02:56.2]} 9. Kh1 {[%clk 0:02:49]} 9... Nf6 {[%clk 0:02:47.7]} 10. f4
{[%clk 0:02:47]} 10... exd4 {[%clk 0:02:35.9]} 11. e5 {[%clk 0:02:46.8]} 11...
Nd5 {[%clk 0:02:25.6]} 12. cxd4 {[%clk 0:02:45.5]} 12... O-O {[%clk 0:02:18.1]}
13. Nc3 {[%clk 0:02:45]} 13... Nxc3 {[%clk 0:01:58.5]} 14. bxc3 {[%clk
0:02:44.4]} 14... Bf5 {[%clk 0:01:51.3]} 15. Bd3 {[%clk 0:02:42.6]} 15... Bxd3
{[%clk 0:01:31.3]} 16. Qxd3 {[%clk 0:02:41.9]} 16... dxe5 {[%clk 0:01:30]} 17.
fxe5 {[%clk 0:02:40.9]} 17... Qd5 {[%clk 0:01:21.8]} 18. Be3 {[%clk 0:02:35.5]}
18... Rad8 {[%clk 0:01:13.6]} 19. Qe2 {[%clk 0:02:21.1]} 19... Qe4 {[%clk
0:01:04.7]} 20. Rf4 {[%clk 0:02:19.1]} 20... Qg6 {[%clk 0:00:52.3]} 21. Rg4
{[%clk 0:02:17.5]} 21... Qe6 {[%clk 0:00:51]} 22. h3 {[%clk 0:01:36.2]} 22... f6
{[%clk 0:00:46.3]} 23. Bf4 {[%clk 0:01:33.6]} 23... Bc7 {[%clk 0:00:37.4]} 24.
Bh6 {[%clk 0:01:24.7]} 24... Rd7 {[%clk 0:00:34.1]} 25. Re4 {[%clk 0:01:06]}
25... fxe5 {[%clk 0:00:31.2]} 26. Bf4 {[%clk 0:01:04.2]} 26... Qf5 {[%clk
0:00:16.5]} 27. dxe5 {[%clk 0:00:56.7]} 27... Re7 {[%clk 0:00:14.2]} 28. Bg3
{[%clk 0:00:52.7]} 28... Qe6 {[%clk 0:00:13.9]} 29. Re1 {[%clk 0:00:51.6]} 29...
h6 {[%clk 0:00:13.8]} 30. a4 {[%clk 0:00:50.9]} 30... Rfe8 {[%clk 0:00:13.7]}
31. c4 {[%clk 0:00:49.7]} 31... Bb6 {[%clk 0:00:12.7]} 32. Bf4 {[%clk
0:00:47.1]} 32... Ba5 {[%clk 0:00:12.7]} 33. Rd1 {[%clk 0:00:45.9]} 33... Bb6
{[%clk 0:00:11.6]} 34. Qf3 {[%clk 0:00:44.5]} 34... Qf5 {[%clk 0:00:11.2]} 35.
Qe2 {[%clk 0:00:42.8]} 35... Bc7 {[%clk 0:00:09]} 36. Re1 {[%clk 0:00:41.9]}
36... Ba5 {[%clk 0:00:08]} 37. Rf1 {[%clk 0:00:41.4]} 37... Bc7 {[%clk
0:00:06.8]} 38. Bg3 {[%clk 0:00:40.8]} 38... Qe6 {[%clk 0:00:05.3]} 39. Re1
{[%clk 0:00:39.9]} 39... Qg6 {[%clk 0:00:04.9]} 40. Kh2 {[%clk 0:00:38.8]} 40...
Ba5 {[%clk 0:00:04.7]} 41. Rd1 {[%clk 0:00:38.4]} 41... Bc7 {[%clk 0:00:04.3]}
42. Rf1 {[%clk 0:00:34.6]} 42... Bb6 {[%clk 0:00:01.9]} 43. Rf3 {[%clk
0:00:33.8]} 43... Bc7 {[%clk 0:00:01.2]} 44. c5 {[%clk 0:00:33.5]} 1-0

[Event "Late-Titled-Tuesday-Blitz-September-26-2023"]
[Site "Chess.com"]
[Date "2023.09.26"]
[Round "4"]
[White "canary2016"]
[Black "ejalmedina"]
[Result "0-1"]
[WhiteElo "2128"]
[BlackElo "2317"]
[TimeControl "180+1"]
[EndTime "14:38:10 PDT"]
[Termination "ejalmedina won by checkmate"]

1. e4 {[%clk 0:03:00.9]} 1... e5 {[%clk 0:02:56.9]} 2. Nf3 {[%clk 0:02:57.8]}
2... Nc6 {[%clk 0:02:56.9]} 3. d4 {[%clk 0:02:56.3]} 3... exd4 {[%clk 0:02:56]}
4. Nxd4 {[%clk 0:02:56]} 4... Bb4+ {[%clk 0:02:56.7]} 5. c3 {[%clk 0:02:52.8]}
5... Bc5 {[%clk 0:02:57.2]} 6. Be3 {[%clk 0:02:50.8]} 6... Bb6 {[%clk
0:02:57.7]} 7. Bc4 {[%clk 0:02:48.9]} 7... Nge7 {[%clk 0:02:57.5]} 8. O-O {[%clk
0:02:48.4]} 8... O-O {[%clk 0:02:57.1]} 9. Nd2 {[%clk 0:02:46.2]} 9... Nxd4
{[%clk 0:02:57]} 10. Bxd4 {[%clk 0:02:46.1]} 10... Bxd4 {[%clk 0:02:56.8]} 11.
cxd4 {[%clk 0:02:46.4]} 11... d5 {[%clk 0:02:56.9]} 12. exd5 {[%clk 0:02:41.4]}
12... Nxd5 {[%clk 0:02:57.8]} 13. Nf3 {[%clk 0:02:41.1]} 13... c6 {[%clk
0:02:39.5]} 14. Rc1 {[%clk 0:02:23.5]} 14... Nb6 {[%clk 0:02:34.1]} 15. Bd3
{[%clk 0:02:22.2]} 15... Be6 {[%clk 0:02:29.5]} 16. Qc2 {[%clk 0:02:20.3]} 16...
g6 {[%clk 0:02:20.8]} 17. Rcd1 {[%clk 0:02:20.1]} 17... Bd5 {[%clk 0:02:09.4]}
18. Ne5 {[%clk 0:02:19]} 18... Kg7 {[%clk 0:01:57.9]} 19. Qd2 {[%clk 0:02:13.3]}
19... Qh4 {[%clk 0:01:49.2]} 20. Be2 {[%clk 0:02:07.1]} 20... Rad8 {[%clk
0:01:46.1]} 21. Ng4 {[%clk 0:02:05.2]} 21... Nc4 {[%clk 0:01:21.5]} 22. Qf4
{[%clk 0:01:50.8]} 22... f5 {[%clk 0:01:18.5]} 23. Bxc4 {[%clk 0:01:20.4]} 23...
fxg4 {[%clk 0:01:06.2]} 24. Qe5+ {[%clk 0:01:16.9]} 24... Qf6 {[%clk 0:01:01.2]}
25. Bxd5 {[%clk 0:01:04.6]} 25... Rxd5 {[%clk 0:00:59.4]} 26. Qe4 {[%clk
0:01:01.2]} 26... h5 {[%clk 0:00:50.9]} 27. Qe3 {[%clk 0:00:23.1]} 27... Rf7
{[%clk 0:00:45.2]} 28. Rfe1 {[%clk 0:00:21.9]} 28... Rfd7 {[%clk 0:00:41.5]} 29.
Qe8 {[%clk 0:00:13.1]} 29... Rxd4 {[%clk 0:00:23.3]} 30. Rxd4 {[%clk 0:00:11.1]}
30... Qxd4 {[%clk 0:00:19.4]} 31. Re7+ {[%clk 0:00:06.8]} 31... Rxe7 {[%clk
0:00:19.3]} 32. Qxe7+ {[%clk 0:00:07.2]} 32... Kh6 {[%clk 0:00:18.7]} 33. Qf8+
{[%clk 0:00:06.9]} 33... Qg7 {[%clk 0:00:13.6]} 34. Qf4+ {[%clk 0:00:06.7]}
34... Kh7 {[%clk 0:00:13.9]} 35. Qd2 {[%clk 0:00:02.4]} 35... Qe7 {[%clk
0:00:12.4]} 36. Qc2 {[%clk 0:00:01.8]} 36... Qe1# {[%clk 0:00:11.6]} 0-1